[Event "Late-Titled-Tuesday-Blitz-September-12-2023"]
[Site "Chess.com"]
[Date "2023.09.12"]
[Round "4"]
[White "ahkashefi2800"]
[Black "F-Ghaith2021"]
[Result "1-0"]
[WhiteElo "2612"]
[BlackElo "2376"]
[TimeControl "180+1"]
[EndTime "14:35:12 PDT"]
[Termination "ahkashefi2800 won by checkmate"]

1. d4 {[%clk 0:02:59.6]} 1... Nf6 {[%clk 0:02:58.3]} 2. Nf3 {[%clk 0:02:59.5]}
2... e6 {[%clk 0:02:58.5]} 3. g3 {[%clk 0:02:59.1]} 3... d5 {[%clk 0:02:58.2]}
4. Bg2 {[%clk 0:02:59.5]} 4... Be7 {[%clk 0:02:58.2]} 5. O-O {[%clk 0:03:00.1]}
5... O-O {[%clk 0:02:58.6]} 6. c4 {[%clk 0:02:59.8]} 6... c6 {[%clk 0:02:56.6]}
7. Nc3 {[%clk 0:02:58.7]} 7... Nbd7 {[%clk 0:02:55.1]} 8. b3 {[%clk 0:02:56.3]}
8... b6 {[%clk 0:02:52.6]} 9. Bb2 {[%clk 0:02:56.2]} 9... Ba6 {[%clk 0:02:52.2]}
10. Nd2 {[%clk 0:02:51.8]} 10... Rc8 {[%clk 0:02:51.1]} 11. Rc1 {[%clk
0:02:49.8]} 11... Re8 {[%clk 0:02:49.7]} 12. e4 {[%clk 0:02:44.9]} 12... dxe4
{[%clk 0:02:39]} 13. Ncxe4 {[%clk 0:02:44]} 13... Nxe4 {[%clk 0:02:33.1]} 14.
Bxe4 {[%clk 0:02:44.9]} 14... Bf6 {[%clk 0:02:00.2]} 15. Bb1 {[%clk 0:02:43.7]}
15... g6 {[%clk 0:01:58.6]} 16. Re1 {[%clk 0:02:43.3]} 16... c5 {[%clk
0:01:58.2]} 17. Ne4 {[%clk 0:02:42.6]} 17... cxd4 {[%clk 0:01:19.6]} 18. Bxd4
{[%clk 0:02:41.9]} 18... Bxd4 {[%clk 0:01:17.7]} 19. Qxd4 {[%clk 0:02:41.9]}
19... e5 {[%clk 0:01:13.9]} 20. Qxd7 {[%clk 0:02:41.5]} 20... Qxd7 {[%clk
0:01:01.3]} 21. Nf6+ {[%clk 0:02:41.3]} 21... Kg7 {[%clk 0:01:01.6]} 22. Nxd7
{[%clk 0:02:41.7]} 22... Rc7 {[%clk 0:01:02.1]} 23. Rcd1 {[%clk 0:02:41.3]}
23... f6 {[%clk 0:00:58.5]} 24. f4 {[%clk 0:02:38.7]} 24... Bc8 {[%clk
0:00:57.3]} 25. Nb8 {[%clk 0:02:25.7]} 25... Bg4 {[%clk 0:00:53.1]} 26. Na6
{[%clk 0:02:25.4]} 26... Rce7 {[%clk 0:00:50.8]} 27. Rc1 {[%clk 0:02:19.3]}
27... e4 {[%clk 0:00:50.9]} 28. Nb4 {[%clk 0:02:15.5]} 28... e3 {[%clk
0:00:50.4]} 29. Nd5 {[%clk 0:02:14.9]} 29... Rd7 {[%clk 0:00:50.8]} 30. Rxe3
{[%clk 0:02:13.2]} 30... Rxd5 {[%clk 0:00:34.8]} 31. Rxe8 {[%clk 0:02:12.2]}
31... Rd2 {[%clk 0:00:35.7]} 32. Ree1 {[%clk 0:02:07.7]} 32... Bf3 {[%clk
0:00:35.3]} 33. Rc2 {[%clk 0:02:07.7]} 33... Rd4 {[%clk 0:00:25.7]} 34. Kf2
{[%clk 0:02:07]} 34... Bc6 {[%clk 0:00:23.1]} 35. Rce2 {[%clk 0:02:06.8]} 35...
Kh6 {[%clk 0:00:21.7]} 36. Be4 {[%clk 0:02:07.1]} 36... Bd7 {[%clk 0:00:21.4]}
37. Bf3 {[%clk 0:02:07.1]} 37... a5 {[%clk 0:00:21.2]} 38. Re7 {[%clk
0:02:07.4]} 38... Bf5 {[%clk 0:00:20.9]} 39. h4 {[%clk 0:02:06.5]} 39... Rd2+
{[%clk 0:00:19.1]} 40. R1e2 {[%clk 0:02:06.5]} 40... Rd1 {[%clk 0:00:19.8]} 41.
g4 {[%clk 0:02:06.7]} 41... Bd3 {[%clk 0:00:20]} 42. g5+ {[%clk 0:02:06.8]}
42... fxg5 {[%clk 0:00:20.2]} 43. hxg5# {[%clk 0:02:07.7]} 1-0

[Event "Late-Titled-Tuesday-Blitz-September-12-2023"]
[Site "Chess.com"]
[Date "2023.09.12"]
[Round "4"]
[White "Qvalda"]
[Black "DvaHrasta"]
[Result "1-0"]
[WhiteElo "2349"]
[BlackElo "2469"]
[TimeControl "180+1"]
[EndTime "14:35:22 PDT"]
[Termination "Qvalda won on time"]

1. Nf3 {[%clk 0:03:00.9]} 1... Nf6 {[%clk 0:02:57.1]} 2. b3 {[%clk 0:03:00]}
2... d5 {[%clk 0:02:55.8]} 3. Bb2 {[%clk 0:03:00.4]} 3... c5 {[%clk 0:02:56.1]}
4. e3 {[%clk 0:03:00.6]} 4... Nc6 {[%clk 0:02:56.1]} 5. Bb5 {[%clk 0:03:00.6]}
5... Bd7 {[%clk 0:02:55.5]} 6. Bxc6 {[%clk 0:02:58.7]} 6... Bxc6 {[%clk
0:02:55.1]} 7. Ne5 {[%clk 0:02:59.4]} 7... Qc7 {[%clk 0:02:53.7]} 8. f4 {[%clk
0:02:59.2]} 8... e6 {[%clk 0:02:50.6]} 9. d3 {[%clk 0:02:58.8]} 9... Bd6 {[%clk
0:02:47.6]} 10. Nd2 {[%clk 0:02:59.3]} 10... b5 {[%clk 0:02:45.7]} 11. O-O
{[%clk 0:02:56.6]} 11... a5 {[%clk 0:02:45]} 12. Nxc6 {[%clk 0:02:43.2]} 12...
Qxc6 {[%clk 0:02:44.1]} 13. Nf3 {[%clk 0:02:44.1]} 13... a4 {[%clk 0:02:41.8]}
14. Bxf6 {[%clk 0:02:32]} 14... gxf6 {[%clk 0:02:40.1]} 15. c4 {[%clk 0:02:32]}
15... Ke7 {[%clk 0:02:29.5]} 16. Qe2 {[%clk 0:02:27.9]} 16... Ra6 {[%clk
0:02:19.7]} 17. e4 {[%clk 0:02:24.5]} 17... dxe4 {[%clk 0:02:11.6]} 18. dxe4
{[%clk 0:02:24.4]} 18... bxc4 {[%clk 0:02:04.1]} 19. e5 {[%clk 0:02:10.2]} 19...
Bc7 {[%clk 0:01:49]} 20. exf6+ {[%clk 0:02:07.1]} 20... Ke8 {[%clk 0:01:45.3]}
21. bxc4 {[%clk 0:01:58.1]} 21... Bxf4 {[%clk 0:01:28.9]} 22. Rab1 {[%clk
0:01:40.5]} 22... Ra8 {[%clk 0:01:26.1]} 23. Ne5 {[%clk 0:01:37.9]} 23... Bxe5
{[%clk 0:01:25.7]} 24. Qxe5 {[%clk 0:01:38.8]} 24... Rg8 {[%clk 0:01:23.1]} 25.
Rb8+ {[%clk 0:01:31.2]} 1-0

[Event "Late-Titled-Tuesday-Blitz-September-12-2023"]
[Site "Chess.com"]
[Date "2023.09.12"]
[Round "4"]
[White "guillembaches"]
[Black "xozr"]
[Result "0-1"]
[WhiteElo "2510"]
[BlackElo "2375"]
[TimeControl "180+1"]
[EndTime "14:35:27 PDT"]
[Termination "xozr won on time"]

1. e4 {[%clk 0:03:00.9]} 1... c5 {[%clk 0:02:59.6]} 2. Nf3 {[%clk 0:03:00.7]}
2... d6 {[%clk 0:03:00]} 3. d4 {[%clk 0:03:00.4]} 3... cxd4 {[%clk 0:03:00.9]}
4. Nxd4 {[%clk 0:03:01.3]} 4... Nf6 {[%clk 0:03:01.1]} 5. Nc3 {[%clk 0:03:01.9]}
5... a6 {[%clk 0:03:01.6]} 6. Be3 {[%clk 0:03:02.1]} 6... e5 {[%clk 0:02:49.7]}
7. Nb3 {[%clk 0:03:01]} 7... Be6 {[%clk 0:02:46.8]} 8. f3 {[%clk 0:03:00.8]}
8... h5 {[%clk 0:02:46.2]} 9. Nd5 {[%clk 0:03:00.3]} 9... Bxd5 {[%clk
0:02:43.2]} 10. exd5 {[%clk 0:03:01.2]} 10... Nbd7 {[%clk 0:02:43.5]} 11. Qd2
{[%clk 0:03:01]} 11... g6 {[%clk 0:02:43.2]} 12. O-O-O {[%clk 0:02:59.4]} 12...
Bg7 {[%clk 0:02:42]} 13. Kb1 {[%clk 0:02:57.4]} 13... O-O {[%clk 0:02:38.6]} 14.
Be2 {[%clk 0:02:56]} 14... e4 {[%clk 0:02:23.8]} 15. f4 {[%clk 0:02:27.8]} 15...
Rc8 {[%clk 0:02:16]} 16. f5 {[%clk 0:02:16.3]} 16... Nb6 {[%clk 0:02:12.3]} 17.
fxg6 {[%clk 0:02:03.6]} 17... fxg6 {[%clk 0:02:13.2]} 18. Qa5 {[%clk 0:01:46.6]}
18... Nc4 {[%clk 0:02:02.4]} 19. Bxc4 {[%clk 0:01:46.2]} 19... Rxc4 {[%clk
0:01:59.9]} 20. Qd2 {[%clk 0:01:34.6]} 20... Ng4 {[%clk 0:01:50.5]} 21. Bg5
{[%clk 0:01:27.8]} 21... Qc8 {[%clk 0:01:43.5]} 22. h3 {[%clk 0:01:25.3]} 22...
Rf2 {[%clk 0:01:42.5]} 23. hxg4 {[%clk 0:00:42.8]} 23... Rxc2 {[%clk 0:01:35.7]}
24. Qxf2 {[%clk 0:00:25.9]} 24... Rxf2 {[%clk 0:01:34.7]} 25. Bc1 {[%clk
0:00:26.5]} 25... Qc2+ {[%clk 0:01:32.5]} 0-1

[Event "Late-Titled-Tuesday-Blitz-September-12-2023"]
[Site "Chess.com"]
[Date "2023.09.12"]
[Round "4"]
[White "GarayevKanan"]
[Black "Jahonas"]
[Result "1-0"]
[WhiteElo "2718"]
[BlackElo "2445"]
[TimeControl "180+1"]
[EndTime "14:35:31 PDT"]
[Termination "GarayevKanan won by resignation"]

1. Nf3 {[%clk 0:03:00.9]} 1... Nf6 {[%clk 0:02:59.8]} 2. g3 {[%clk 0:03:00.9]}
2... d5 {[%clk 0:02:59.9]} 3. Bg2 {[%clk 0:03:01]} 3... c6 {[%clk 0:03:00.2]} 4.
c4 {[%clk 0:02:55.5]} 4... e6 {[%clk 0:03:00.2]} 5. O-O {[%clk 0:02:54.9]} 5...
Be7 {[%clk 0:02:59.5]} 6. d4 {[%clk 0:02:52.4]} 6... O-O {[%clk 0:02:59.4]} 7.
Nc3 {[%clk 0:02:52.8]} 7... b6 {[%clk 0:02:56.6]} 8. Nd2 {[%clk 0:02:45.9]} 8...
Bb7 {[%clk 0:02:56.3]} 9. e4 {[%clk 0:02:43]} 9... dxc4 {[%clk 0:02:52.2]} 10.
Nxc4 {[%clk 0:02:41.8]} 10... Na6 {[%clk 0:02:50.5]} 11. e5 {[%clk 0:02:34.8]}
11... Nd5 {[%clk 0:02:50]} 12. Ne4 {[%clk 0:02:34.4]} 12... c5 {[%clk
0:02:34.7]} 13. Ncd6 {[%clk 0:02:17.4]} 13... Bc6 {[%clk 0:02:32.6]} 14. Qe2
{[%clk 0:01:58.4]} 14... f5 {[%clk 0:01:40.9]} 15. exf6 {[%clk 0:01:35.1]} 15...
Bxd6 {[%clk 0:01:40.4]} 16. fxg7 {[%clk 0:01:21.3]} 16... Rf7 {[%clk 0:01:25.4]}
17. Qxa6 {[%clk 0:01:07.4]} 17... Nb4 {[%clk 0:01:15.6]} 18. Qe2 {[%clk
0:01:01.5]} 18... cxd4 {[%clk 0:01:12]} 19. Ng5 {[%clk 0:01:01]} 19... Bxg2
{[%clk 0:01:08.5]} 20. Nxf7 {[%clk 0:00:47.4]} 20... Bxf1 {[%clk 0:01:02.4]} 21.
Qxe6 {[%clk 0:00:44.6]} 21... Qe7 {[%clk 0:01:01.8]} 22. Nh6+ {[%clk 0:00:44.5]}
22... Kxg7 {[%clk 0:01:01.6]} 23. Nf5+ {[%clk 0:00:44.8]} 23... Kf8 {[%clk
0:01:00.1]} 24. Bh6+ {[%clk 0:00:45.1]} 24... Ke8 {[%clk 0:00:59.9]} 25. Nxe7
{[%clk 0:00:38.7]} 25... Bxe7 {[%clk 0:01:00]} 26. Re1 {[%clk 0:00:32.7]} 1-0

[Event "Late-Titled-Tuesday-Blitz-September-12-2023"]
[Site "Chess.com"]
[Date "2023.09.12"]
[Round "4"]
[White "ashookk"]
[Black "Mackster23"]
[Result "0-1"]
[WhiteElo "2357"]
[BlackElo "2547"]
[TimeControl "180+1"]
[EndTime "14:35:32 PDT"]
[Termination "Mackster23 won by resignation"]

1. Nf3 {[%clk 0:03:00.9]} 1... Nf6 {[%clk 0:02:59.7]} 2. c4 {[%clk 0:02:59.9]}
2... g6 {[%clk 0:02:59.1]} 3. Nc3 {[%clk 0:02:59.8]} 3... Bg7 {[%clk 0:02:59.6]}
4. e4 {[%clk 0:03:00.5]} 4... d6 {[%clk 0:02:59.2]} 5. d4 {[%clk 0:03:01.4]}
5... O-O {[%clk 0:02:59.1]} 6. Be2 {[%clk 0:03:02.3]} 6... e5 {[%clk 0:02:59.1]}
7. O-O {[%clk 0:03:03.2]} 7... Nc6 {[%clk 0:02:59.4]} 8. d5 {[%clk 0:03:03.4]}
8... Ne7 {[%clk 0:03:00]} 9. Nd2 {[%clk 0:03:04.3]} 9... Ne8 {[%clk 0:02:55.7]}
10. b4 {[%clk 0:03:04]} 10... f5 {[%clk 0:02:54.8]} 11. c5 {[%clk 0:03:04.7]}
11... Nf6 {[%clk 0:02:26]} 12. f3 {[%clk 0:03:04.5]} 12... f4 {[%clk 0:02:22.9]}
13. Nc4 {[%clk 0:03:05]} 13... Ne8 {[%clk 0:02:13.7]} 14. a4 {[%clk 0:03:03.7]}
14... Rf6 {[%clk 0:02:12.6]} 15. Ba3 {[%clk 0:03:04]} 15... g5 {[%clk
0:02:08.9]} 16. a5 {[%clk 0:03:04.4]} 16... Rh6 {[%clk 0:01:59.2]} 17. b5 {[%clk
0:03:02.9]} 17... Ng6 {[%clk 0:01:43]} 18. b6 {[%clk 0:03:02.5]} 18... axb6
{[%clk 0:01:31]} 19. axb6 {[%clk 0:03:01.7]} 19... g4 {[%clk 0:01:18.9]} 20.
fxg4 {[%clk 0:03:00.7]} 20... f3 {[%clk 0:01:00.2]} 21. Bxf3 {[%clk 0:02:51.8]}
21... Qh4 {[%clk 0:00:58.7]} 22. h3 {[%clk 0:02:51]} 22... Nf4 {[%clk
0:00:58.6]} 23. Ne3 {[%clk 0:01:41.5]} 23... Qg3 {[%clk 0:00:49.5]} 24. g5
{[%clk 0:00:36.9]} 24... Nxh3+ {[%clk 0:00:45.6]} 0-1

[Event "Late-Titled-Tuesday-Blitz-September-12-2023"]
[Site "Chess.com"]
[Date "2023.09.12"]
[Round "4"]
[White "ilya2700"]
[Black "bazar-wokzal"]
[Result "0-1"]
[WhiteElo "2289"]
[BlackElo "2575"]
[TimeControl "180+1"]
[EndTime "14:35:47 PDT"]
[Termination "bazar-wokzal won by resignation"]

1. c4 {[%clk 0:03:00.9]} 1... e5 {[%clk 0:02:59.5]} 2. Nc3 {[%clk 0:03:00.3]}
2... Nf6 {[%clk 0:02:59.4]} 3. Nf3 {[%clk 0:03:00.2]} 3... c6 {[%clk 0:02:59.9]}
4. Nxe5 {[%clk 0:02:58.6]} 4... d5 {[%clk 0:02:59.9]} 5. cxd5 {[%clk 0:02:57.3]}
5... cxd5 {[%clk 0:02:59.1]} 6. d4 {[%clk 0:02:57.5]} 6... Nc6 {[%clk
0:02:58.4]} 7. Nxc6 {[%clk 0:02:56.1]} 7... bxc6 {[%clk 0:02:58.4]} 8. Bg5
{[%clk 0:02:46]} 8... h6 {[%clk 0:02:56.8]} 9. Bxf6 {[%clk 0:02:45.6]} 9... Qxf6
{[%clk 0:02:56.5]} 10. e3 {[%clk 0:02:46.2]} 10... Rb8 {[%clk 0:02:55.7]} 11.
Qd2 {[%clk 0:02:43.3]} 11... Bd6 {[%clk 0:02:50.6]} 12. Bd3 {[%clk 0:02:41.1]}
12... O-O {[%clk 0:02:49.8]} 13. O-O {[%clk 0:02:14]} 13... Re8 {[%clk
0:02:49.3]} 14. Rac1 {[%clk 0:02:03.6]} 14... Qh4 {[%clk 0:02:48.3]} 15. g3
{[%clk 0:02:03.5]} 15... Qh3 {[%clk 0:02:48.7]} 16. Na4 {[%clk 0:01:56.9]} 16...
Bg4 {[%clk 0:02:29.5]} 17. Be2 {[%clk 0:01:56.2]} 17... Bd7 {[%clk 0:02:20.9]}
18. Nc5 {[%clk 0:01:52.1]} 18... Bc8 {[%clk 0:02:20.4]} 19. b3 {[%clk
0:01:50.5]} 19... h5 {[%clk 0:02:18.1]} 20. Bf3 {[%clk 0:01:39.4]} 20... h4
{[%clk 0:02:17.2]} 21. Bg2 {[%clk 0:01:39.4]} 21... Qf5 {[%clk 0:02:16.6]} 22.
Qd3 {[%clk 0:01:35.6]} 22... Qh5 {[%clk 0:02:14.7]} 23. e4 {[%clk 0:01:18.7]}
23... Bg4 {[%clk 0:02:09.9]} 24. Rfe1 {[%clk 0:00:55.7]} 24... hxg3 {[%clk
0:02:09.4]} 25. hxg3 {[%clk 0:00:55.4]} 25... dxe4 {[%clk 0:02:03.6]} 26. Nxe4
{[%clk 0:00:47.8]} 26... Bb4 {[%clk 0:02:01.6]} 27. Re3 {[%clk 0:00:46.4]} 27...
Qh6 {[%clk 0:01:37.1]} 28. Qc4 {[%clk 0:00:34.8]} 28... Bd2 {[%clk 0:01:27.9]}
29. Qxc6 {[%clk 0:00:29.4]} 29... Bxe3 {[%clk 0:01:24]} 30. fxe3 {[%clk
0:00:20.5]} 30... Qxe3+ {[%clk 0:01:23.3]} 31. Kh2 {[%clk 0:00:20.1]} 31... Re6
{[%clk 0:01:21.1]} 0-1

[Event "Late-Titled-Tuesday-Blitz-September-12-2023"]
[Site "Chess.com"]
[Date "2023.09.12"]
[Round "4"]
[White "Hikaru"]
[Black "adiosabu"]
[Result "1-0"]
[WhiteElo "3205"]
[BlackElo "2595"]
[TimeControl "180+1"]
[EndTime "14:35:50 PDT"]
[Termination "Hikaru won by resignation"]

1. Nf3 {[%clk 0:02:56.1]} 1... d5 {[%clk 0:02:59.5]} 2. b3 {[%clk 0:02:54.6]}
2... Bf5 {[%clk 0:02:57.1]} 3. Ba3 {[%clk 0:02:54.5]} 3... Nd7 {[%clk
0:02:55.7]} 4. d4 {[%clk 0:02:52.5]} 4... Ngf6 {[%clk 0:02:55.2]} 5. e3 {[%clk
0:02:52.3]} 5... g6 {[%clk 0:02:54.7]} 6. c4 {[%clk 0:02:51]} 6... c6 {[%clk
0:02:52.2]} 7. Nc3 {[%clk 0:02:46.3]} 7... Qa5 {[%clk 0:02:48]} 8. Bb2 {[%clk
0:02:46.5]} 8... Ne4 {[%clk 0:02:46.3]} 9. a3 {[%clk 0:02:43.7]} 9... Nxc3
{[%clk 0:02:33.5]} 10. Qd2 {[%clk 0:02:43.8]} 10... Nf6 {[%clk 0:02:31.2]} 11.
b4 {[%clk 0:02:36.2]} 11... Nce4 {[%clk 0:02:22.6]} 12. bxa5 {[%clk 0:02:37.1]}
12... Nxd2 {[%clk 0:02:22.4]} 13. Nxd2 {[%clk 0:02:38]} 13... Bg7 {[%clk
0:01:59.7]} 14. f3 {[%clk 0:02:36.8]} 14... g5 {[%clk 0:01:55.8]} 15. Rc1 {[%clk
0:02:33]} 15... Bg6 {[%clk 0:01:51.5]} 16. cxd5 {[%clk 0:02:27.9]} 16... Nxd5
{[%clk 0:01:51.1]} 17. e4 {[%clk 0:02:24.1]} 17... Nf4 {[%clk 0:01:51]} 18. Nb3
{[%clk 0:02:19.4]} 18... a6 {[%clk 0:01:45.1]} 19. Nc5 {[%clk 0:02:15.8]} 19...
Rd8 {[%clk 0:01:37.5]} 20. g3 {[%clk 0:02:13.8]} 20... Ne6 {[%clk 0:01:30.3]}
21. Nxe6 {[%clk 0:02:11.2]} 21... fxe6 {[%clk 0:01:29.3]} 22. e5 {[%clk
0:02:11.8]} 22... Rf8 {[%clk 0:01:20.9]} 23. Ke2 {[%clk 0:02:03.7]} 23... Rd5
{[%clk 0:01:14.7]} 24. Rc5 {[%clk 0:02:03.6]} 24... h5 {[%clk 0:00:48.5]} 25.
Ke3 {[%clk 0:01:59.4]} 25... h4 {[%clk 0:00:43.7]} 26. Bc4 {[%clk 0:01:56.6]}
26... Kd7 {[%clk 0:00:36.1]} 27. Bxd5 {[%clk 0:01:43.6]} 27... exd5 {[%clk
0:00:35.8]} 28. g4 {[%clk 0:01:42.8]} 28... e6 {[%clk 0:00:34.6]} 29. Rcc1
{[%clk 0:01:41.1]} 29... Rf7 {[%clk 0:00:33.8]} 30. Bc3 {[%clk 0:01:41.1]} 30...
Bf8 {[%clk 0:00:31.8]} 31. Bb4 {[%clk 0:01:41.5]} 31... Bxb4 {[%clk 0:00:30.3]}
32. axb4 {[%clk 0:01:41.4]} 32... Rf4 {[%clk 0:00:31]} 33. b5 {[%clk 0:01:31.5]}
33... axb5 {[%clk 0:00:30.7]} 34. a6 {[%clk 0:01:32.4]} 34... bxa6 {[%clk
0:00:30.4]} 35. Ra1 {[%clk 0:01:33.1]} 35... c5 {[%clk 0:00:30.6]} 36. Rxa6
{[%clk 0:01:31.8]} 36... Rxd4 {[%clk 0:00:27.4]} 37. Rha1 {[%clk 0:01:27.8]}
37... Rd3+ {[%clk 0:00:20.2]} 38. Ke2 {[%clk 0:01:27.9]} 38... b4 {[%clk
0:00:18]} 39. Rd6+ {[%clk 0:01:27.1]} 39... Kc7 {[%clk 0:00:16.8]} 40. Rxe6
{[%clk 0:01:25.5]} 1-0

[Event "Late-Titled-Tuesday-Blitz-September-12-2023"]
[Site "Chess.com"]
[Date "2023.09.12"]
[Round "4"]
[White "ritanovikova"]
[Black "CURRUTACO59"]
[Result "1/2-1/2"]
[WhiteElo "2125"]
[BlackElo "2278"]
[TimeControl "180+1"]
[EndTime "14:35:50 PDT"]
[Termination "Game drawn by repetition"]

1. d4 {[%clk 0:03:00]} 1... Nf6 {[%clk 0:02:59.1]} 2. Bf4 {[%clk 0:03:00]} 2...
e6 {[%clk 0:02:57.2]} 3. e3 {[%clk 0:02:59.5]} 3... d5 {[%clk 0:02:56.5]} 4. Nf3
{[%clk 0:02:57.5]} 4... Bd6 {[%clk 0:02:56.4]} 5. Ne5 {[%clk 0:02:55.6]} 5...
O-O {[%clk 0:02:55]} 6. Nd2 {[%clk 0:02:52.4]} 6... c5 {[%clk 0:02:55]} 7. c3
{[%clk 0:02:50.4]} 7... b6 {[%clk 0:02:52.2]} 8. Ndf3 {[%clk 0:02:50]} 8... Qc7
{[%clk 0:02:49.4]} 9. h3 {[%clk 0:02:49.7]} 9... Ba6 {[%clk 0:02:47]} 10. Bxa6
{[%clk 0:02:48]} 10... Nxa6 {[%clk 0:02:47.9]} 11. O-O {[%clk 0:02:47.5]} 11...
Nb8 {[%clk 0:02:47.6]} 12. Nd3 {[%clk 0:02:45.8]} 12... Nc6 {[%clk 0:02:41.4]}
13. Bxd6 {[%clk 0:02:43.8]} 13... Qxd6 {[%clk 0:02:41.1]} 14. Nde5 {[%clk
0:02:43.5]} 14... c4 {[%clk 0:02:30.3]} 15. Nxc6 {[%clk 0:02:41.6]} 15... Qxc6
{[%clk 0:02:29.8]} 16. Ne5 {[%clk 0:02:41.3]} 16... Qc7 {[%clk 0:02:22.4]} 17.
f3 {[%clk 0:02:40.2]} 17... b5 {[%clk 0:02:18.2]} 18. Qc2 {[%clk 0:02:38.9]}
18... Qb7 {[%clk 0:02:10.1]} 19. Rfe1 {[%clk 0:02:35.9]} 19... b4 {[%clk
0:02:05.2]} 20. e4 {[%clk 0:02:35]} 20... a5 {[%clk 0:02:03.3]} 21. exd5 {[%clk
0:02:32.4]} 21... exd5 {[%clk 0:01:59.8]} 22. Ng4 {[%clk 0:02:26.2]} 22... Nxg4
{[%clk 0:01:47.5]} 23. hxg4 {[%clk 0:02:21.7]} 23... Rfe8 {[%clk 0:01:42.9]} 24.
Qf2 {[%clk 0:02:17.2]} 24... bxc3 {[%clk 0:01:39]} 25. bxc3 {[%clk 0:02:16.6]}
25... Rab8 {[%clk 0:01:38.1]} 26. Rxe8+ {[%clk 0:02:07]} 26... Rxe8 {[%clk
0:01:37.2]} 27. Re1 {[%clk 0:02:06.9]} 27... Rxe1+ {[%clk 0:01:27.4]} 28. Qxe1
{[%clk 0:02:04.4]} 28... h6 {[%clk 0:01:21]} 29. Qe8+ {[%clk 0:02:00.9]} 29...
Kh7 {[%clk 0:01:20.6]} 30. Qa4 {[%clk 0:01:57.4]} 30... Qb6 {[%clk 0:01:17]} 31.
Kh2 {[%clk 0:01:51]} 31... Qc7+ {[%clk 0:01:15.4]} 32. Kh3 {[%clk 0:01:46.7]}
32... g6 {[%clk 0:01:14.5]} 33. Qb5 {[%clk 0:01:44.4]} 33... Qd8 {[%clk
0:01:04.3]} 34. a4 {[%clk 0:01:39.7]} 34... Kg7 {[%clk 0:01:02.6]} 35. Qc6
{[%clk 0:01:32.4]} 35... Qg5 {[%clk 0:00:55.1]} 36. Qc5 {[%clk 0:01:25.4]} 36...
h5 {[%clk 0:00:51.6]} 37. Qxa5 {[%clk 0:01:23.1]} 37... hxg4+ {[%clk 0:00:51.5]}
38. fxg4 {[%clk 0:01:22.6]} 38... Qe3+ {[%clk 0:00:50.3]} 39. Kh2 {[%clk
0:01:20.3]} 39... Qf4+ {[%clk 0:00:49.4]} 40. Kh3 {[%clk 0:01:17.5]} 40... Qh6+
{[%clk 0:00:42.3]} 41. Kg3 {[%clk 0:01:16.3]} 41... Qe3+ {[%clk 0:00:42.5]} 42.
Kh2 {[%clk 0:01:13.9]} 42... Qh6+ {[%clk 0:00:40.2]} 43. Kg3 {[%clk 0:01:10.1]}
43... Qe3+ {[%clk 0:00:39.9]} 44. Kh2 {[%clk 0:01:09]} 1/2-1/2

[Event "Late-Titled-Tuesday-Blitz-September-12-2023"]
[Site "Chess.com"]
[Date "2023.09.12"]
[Round "4"]
[White "trriinu"]
[Black "StarkyNZ"]
[Result "0-1"]
[WhiteElo "2202"]
[BlackElo "2330"]
[TimeControl "180+1"]
[EndTime "14:35:51 PDT"]
[Termination "StarkyNZ won on time"]

1. e4 {[%clk 0:03:00.9]} 1... c6 {[%clk 0:02:59.7]} 2. Nc3 {[%clk 0:02:55.7]}
2... d5 {[%clk 0:03:00.1]} 3. Nf3 {[%clk 0:02:54.9]} 3... dxe4 {[%clk
0:03:00.2]} 4. Nxe4 {[%clk 0:02:54.9]} 4... Nf6 {[%clk 0:03:00.6]} 5. Qe2 {[%clk
0:02:53.6]} 5... e6 {[%clk 0:02:56.9]} 6. d4 {[%clk 0:02:41.9]} 6... Nbd7 {[%clk
0:02:55.9]} 7. Ne5 {[%clk 0:02:18.4]} 7... Nxe4 {[%clk 0:02:49.4]} 8. Qxe4
{[%clk 0:02:06.4]} 8... Be7 {[%clk 0:02:48.2]} 9. Bd3 {[%clk 0:02:01.4]} 9...
Nf6 {[%clk 0:02:48.5]} 10. Qf4 {[%clk 0:01:48.9]} 10... O-O {[%clk 0:02:36.8]}
11. c3 {[%clk 0:01:48.8]} 11... c5 {[%clk 0:02:35.9]} 12. dxc5 {[%clk
0:01:14.6]} 12... Bxc5 {[%clk 0:02:32.9]} 13. Be3 {[%clk 0:00:59.7]} 13... Bd6
{[%clk 0:02:22.1]} 14. Bd4 {[%clk 0:00:58.8]} 14... Qc7 {[%clk 0:02:21.3]} 15.
O-O {[%clk 0:00:50.5]} 15... Nd7 {[%clk 0:02:14.6]} 16. Qh4 {[%clk 0:00:42.3]}
16... h6 {[%clk 0:02:04.6]} 17. Ng4 {[%clk 0:00:33.2]} 17... e5 {[%clk
0:02:00.6]} 18. Nxh6+ {[%clk 0:00:13.1]} 18... gxh6 {[%clk 0:01:58.6]} 19. Qg4+
{[%clk 0:00:13]} 19... Kh8 {[%clk 0:01:54.1]} 20. Qf5 {[%clk 0:00:13.2]} 20...
Kg7 {[%clk 0:01:46.2]} 21. Be3 {[%clk 0:00:04.5]} 21... Nf6 {[%clk 0:01:41.7]}
22. Bxh6+ {[%clk 0:00:04.1]} 22... Kxh6 {[%clk 0:01:39.2]} 23. Qxf6+ {[%clk
0:00:04.5]} 23... Kh5 {[%clk 0:01:38.2]} 24. Be2+ {[%clk 0:00:03.5]} 24... Bg4
{[%clk 0:01:35.3]} 25. Qf5+ {[%clk 0:00:03.3]} 25... Kh6 {[%clk 0:01:34.2]} 26.
Bxg4 {[%clk 0:00:02.2]} 26... Rg8 {[%clk 0:01:31]} 27. Qf6+ {[%clk 0:00:02.4]}
27... Rg6 {[%clk 0:01:29.8]} 28. Qh4+ {[%clk 0:00:02.3]} 28... Kg7 {[%clk
0:01:30.2]} 29. Bh5 {[%clk 0:00:02.5]} 29... Rh8 {[%clk 0:01:28.3]} 30. Rfe1
{[%clk 0:00:01.1]} 30... Be7 {[%clk 0:01:18.9]} 0-1

[Event "Late-Titled-Tuesday-Blitz-September-12-2023"]
[Site "Chess.com"]
[Date "2023.09.12"]
[Round "4"]
[White "zverr1"]
[Black "Mbneu"]
[Result "1-0"]
[WhiteElo "2475"]
[BlackElo "2291"]
[TimeControl "180+1"]
[EndTime "14:35:55 PDT"]
[Termination "zverr1 won by resignation"]

1. d4 {[%clk 0:03:00.9]} 1... Nf6 {[%clk 0:02:56.4]} 2. c4 {[%clk 0:03:00.8]}
2... c5 {[%clk 0:02:56.9]} 3. d5 {[%clk 0:03:00.3]} 3... e6 {[%clk 0:02:57.5]}
4. Nc3 {[%clk 0:02:59.9]} 4... exd5 {[%clk 0:02:58]} 5. cxd5 {[%clk 0:03:00.8]}
5... d6 {[%clk 0:02:58.5]} 6. Nf3 {[%clk 0:03:01.7]} 6... g6 {[%clk 0:02:58.5]}
7. Bf4 {[%clk 0:03:02.4]} 7... Bg7 {[%clk 0:02:58.1]} 8. Qa4+ {[%clk 0:02:58.8]}
8... b5 {[%clk 0:02:34.5]} 9. Qxb5+ {[%clk 0:02:37.6]} 9... Bd7 {[%clk
0:01:37.3]} 10. Qb7 {[%clk 0:02:26.1]} 10... Qb6 {[%clk 0:01:36.3]} 11. Qxb6
{[%clk 0:02:22.3]} 11... axb6 {[%clk 0:01:35.8]} 12. Bxd6 {[%clk 0:02:23]} 12...
b5 {[%clk 0:01:29.7]} 13. Bxc5 {[%clk 0:02:19.6]} 13... Na6 {[%clk 0:01:29.2]}
14. Bd4 {[%clk 0:02:10.6]} 14... O-O {[%clk 0:01:19.4]} 15. e3 {[%clk
0:01:58.1]} 15... Nb4 {[%clk 0:01:13.3]} 16. Rc1 {[%clk 0:01:33.4]} 16... Nxa2
{[%clk 0:01:09.1]} 17. Nxa2 {[%clk 0:01:33.2]} 17... Rxa2 {[%clk 0:01:09.4]} 18.
Ne5 {[%clk 0:01:12.9]} 18... Be8 {[%clk 0:00:17.9]} 19. d6 {[%clk 0:01:07]}
19... Nd7 {[%clk 0:00:17.1]} 20. f4 {[%clk 0:01:03]} 20... f6 {[%clk 0:00:14.1]}
21. Nc6 {[%clk 0:00:59]} 21... Bf7 {[%clk 0:00:12.5]} 22. Bxb5 {[%clk
0:00:57.2]} 22... f5 {[%clk 0:00:12.5]} 23. Ne5 {[%clk 0:00:52.6]} 23... Nxe5
{[%clk 0:00:11.2]} 24. fxe5 {[%clk 0:00:53]} 1-0